[Event "Titled Tuesday Blitz March 28 Early 2023"]
[White "Vargas, Mauricio"]
[Black "Fawzy, Adham"]
[WhiteFideId "4404572"]
[BlackFideId "10613129"]
[WhiteElo "2025"]
[BlackElo "2539"]
[Result "0-1"]
[Round "03"]
[TimeControl "180+2"]
[Date "2023.03.28"]
[WhiteClock "0:00:31"]
[BlackClock "0:01:38"]

1. e4 {[%clk 0:02:59]}  c5 {[%clk 0:02:59]} 2. g3 {[%clk 0:02:58]}  d6 {[%clk 0:02:59]} 3. Bg2 {[%clk 0:02:58]}  g6 {[%clk 0:03:00]} 4. f4 {[%clk 0:02:58]}  Bg7 {[%clk 0:03:00]} 5. h3 {[%clk 0:02:58]}  Nf6 {[%clk 0:03:01]} 6. d3 {[%clk 0:02:57]}  O-O {[%clk 0:03:01]} 7. Nf3 {[%clk 0:02:57]}  Nc6 {[%clk 0:03:02]} 8. O-O {[%clk 0:02:57]}  b5 {[%clk 0:03:01]} 9. c3 {[%clk 0:02:57]}  Rb8 {[%clk 0:03:01]} 10. Nbd2 {[%clk 0:02:55]}  Bb7 {[%clk 0:02:59]} 11. Rf2 {[%clk 0:02:52]}  a5 {[%clk 0:02:56]} 12. Bf1 {[%clk 0:02:50]}  b4 {[%clk 0:02:47]} 13. Rh2 {[%clk 0:02:44]}  bxc3 {[%clk 0:02:41]} 14. bxc3 {[%clk 0:02:42]}  Nh5 {[%clk 0:02:41]} 15. g4 {[%clk 0:02:21]}  Nxf4 {[%clk 0:02:38]} 16. Nc4 {[%clk 0:02:19]}  Ne6 {[%clk 0:02:33]} 17. Bd2 {[%clk 0:02:14]}  Ba6 {[%clk 0:02:26]} 18. Ne3 {[%clk 0:02:00]}  Ne5 {[%clk 0:02:18]} 19. Nxe5 {[%clk 0:01:37]}  Bxe5 {[%clk 0:02:19]} 20. Rg2 {[%clk 0:01:31]}  Nf4 {[%clk 0:02:18]} 21. d4 {[%clk 0:01:09]}  Bxf1 {[%clk 0:01:51]} 22. dxe5 {[%clk 0:00:53]}  Bxg2 {[%clk 0:01:49]} 23. Nxg2 {[%clk 0:00:52]}  Nxg2 {[%clk 0:01:49]} 24. Kxg2 {[%clk 0:00:51]}  dxe5 {[%clk 0:01:50]} 25. Qe1 {[%clk 0:00:50]}  Rb2 {[%clk 0:01:48]} 26. Kg1 {[%clk 0:00:42]}  Qxd2 {[%clk 0:01:47]} 27. Qg3 {[%clk 0:00:35]}  Rfb8 {[%clk 0:01:44]} 28. Rf1 {[%clk 0:00:34]}  Rb1 {[%clk 0:01:39]} 29. Qf3 {[%clk 0:00:31]}  Rxf1+ {[%clk 0:01:38]} 30. Qxf1 {[%clk 0:00:31]}  Qc2 {[%clk 0:01:38]} 0-1


[Site "https://www.chess.com"]

[Event "Titled Tuesday Blitz March 28 Early 2023"]
[White "Boraso, Alessio"]
[Black "Prado, Alexandra"]
[WhiteFideId "848077"]
[BlackFideId "3301346"]
[WhiteElo "2286"]
[BlackElo "1759"]
[Result "1-0"]
[Round "03"]
[TimeControl "180+2"]
[Date "2023.03.28"]
[WhiteClock "0:01:15"]
[BlackClock "0:00:05"]

1. d4 {[%clk 0:03:00]}  Nf6 {[%clk 0:02:54]} 2. c4 {[%clk 0:03:00]}  g6 {[%clk 0:02:54]} 3. Nc3 {[%clk 0:03:01]}  Bg7 {[%clk 0:02:52]} 4. e4 {[%clk 0:03:01]}  d6 {[%clk 0:02:52]} 5. Nf3 {[%clk 0:03:00]}  O-O {[%clk 0:02:50]} 6. Be2 {[%clk 0:03:01]}  e5 {[%clk 0:02:49]} 7. O-O {[%clk 0:03:01]}  Nc6 {[%clk 0:02:46]} 8. d5 {[%clk 0:03:01]}  Ne7 {[%clk 0:02:46]} 9. Ne1 {[%clk 0:03:02]}  Ne8 {[%clk 0:02:25]} 10. Be3 {[%clk 0:03:02]}  f5 {[%clk 0:02:23]} 11. f3 {[%clk 0:03:02]}  f4 {[%clk 0:02:23]} 12. Bf2 {[%clk 0:03:02]}  Rf7 {[%clk 0:02:15]} 13. b4 {[%clk 0:02:58]}  Bf8 {[%clk 0:02:10]} 14. c5 {[%clk 0:02:56]}  g5 {[%clk 0:02:10]} 15. cxd6 {[%clk 0:02:52]}  cxd6 {[%clk 0:02:10]} 16. Rc1 {[%clk 0:02:47]}  Ng6 {[%clk 0:02:03]} 17. Nb5 {[%clk 0:02:43]}  a6 {[%clk 0:01:49]} 18. Na3 {[%clk 0:02:41]}  h5 {[%clk 0:01:45]} 19. Nc4 {[%clk 0:02:41]}  g4 {[%clk 0:01:27]} 20. Kh1 {[%clk 0:02:40]}  gxf3 {[%clk 0:01:04]} 21. Bxf3 {[%clk 0:02:37]}  h4 {[%clk 0:01:00]} 22. Nb6 {[%clk 0:02:28]}  Bd7 {[%clk 0:00:44]} 23. Nxa8 {[%clk 0:02:02]}  Qxa8 {[%clk 0:00:43]} 24. Bg4 {[%clk 0:01:56]}  Bb5 {[%clk 0:00:34]} 25. Rg1 {[%clk 0:01:42]}  a5 {[%clk 0:00:13]} 26. Be6 {[%clk 0:01:33]}  axb4 {[%clk 0:00:10]} 27. Qh5 {[%clk 0:01:24]}  Kg7 {[%clk 0:00:09]} 28. Nf3 {[%clk 0:01:15]}  Rf6 {[%clk 0:00:05]} 29. Ng5 {[%clk 0:01:15]} 1-0


[Site "https://www.chess.com"]

[Event "Titled Tuesday Blitz March 28 Early 2023"]
[White "So, Wesley"]
[Black "Shimanov, Aleksandr"]
[WhiteFideId "5202213"]
[BlackFideId "4198603"]
[WhiteElo "2739"]
[BlackElo "2631"]
[Result "1/2-1/2"]
[Round "04"]
[TimeControl "180+2"]
[Date "2023.03.28"]
[WhiteClock "0:00:07"]
[BlackClock "0:00:07"]

1. d4 {[%clk 0:03:00]}  Nf6 {[%clk 0:02:57]} 2. Nf3 {[%clk 0:02:58]}  g6 {[%clk 0:02:56]} 3. Nbd2 {[%clk 0:02:57]}  d6 {[%clk 0:02:50]} 4. e4 {[%clk 0:02:56]}  Bg7 {[%clk 0:02:51]} 5. Bb5+ {[%clk 0:02:54]}  c6 {[%clk 0:02:50]} 6. Bd3 {[%clk 0:02:54]}  O-O {[%clk 0:02:50]} 7. O-O {[%clk 0:02:51]}  c5 {[%clk 0:02:50]} 8. dxc5 {[%clk 0:02:47]}  dxc5 {[%clk 0:02:50]} 9. h3 {[%clk 0:02:42]}  Nc6 {[%clk 0:02:50]} 10. Re1 {[%clk 0:02:40]}  b6 {[%clk 0:02:46]} 11. e5 {[%clk 0:02:11]}  Nd5 {[%clk 0:02:45]} 12. Be4 {[%clk 0:02:02]}  Bb7 {[%clk 0:02:40]} 13. Nc4 {[%clk 0:02:01]}  Nc7 {[%clk 0:02:27]} 14. a4 {[%clk 0:01:53]}  Qxd1 {[%clk 0:02:04]} 15. Rxd1 {[%clk 0:01:54]}  Rad8 {[%clk 0:02:04]} 16. Re1 {[%clk 0:01:54]}  Ne6 {[%clk 0:01:54]} 17. c3 {[%clk 0:01:47]}  Rd7 {[%clk 0:01:52]} 18. Ng5 {[%clk 0:01:35]}  Nxg5 {[%clk 0:01:33]} 19. Bxg5 {[%clk 0:01:36]}  h6 {[%clk 0:01:29]} 20. Bf4 {[%clk 0:01:21]}  Nd8 {[%clk 0:01:09]} 21. Bxb7 {[%clk 0:01:15]}  Rxb7 {[%clk 0:01:09]} 22. Red1 {[%clk 0:01:13]}  Ne6 {[%clk 0:01:09]} 23. Be3 {[%clk 0:01:13]}  Rd8 {[%clk 0:01:04]} 24. Rxd8+ {[%clk 0:00:57]}  Nxd8 {[%clk 0:01:05]} 25. a5 {[%clk 0:00:54]}  Nc6 {[%clk 0:00:59]} 26. axb6 {[%clk 0:00:52]}  axb6 {[%clk 0:01:00]} 27. Ra8+ {[%clk 0:00:52]}  Kh7 {[%clk 0:01:00]} 28. f4 {[%clk 0:00:45]}  b5 {[%clk 0:00:54]} 29. Na5 {[%clk 0:00:44]}  Nxa5 {[%clk 0:00:54]} 30. Rxa5 {[%clk 0:00:45]}  c4 {[%clk 0:00:54]} 31. Kf2 {[%clk 0:00:44]}  f6 {[%clk 0:00:51]} 32. e6 {[%clk 0:00:43]}  f5 {[%clk 0:00:50]} 33. Bc5 {[%clk 0:00:34]}  Bf6 {[%clk 0:00:48]} 34. g4 {[%clk 0:00:35]}  Kg7 {[%clk 0:00:33]} 35. Kf3 {[%clk 0:00:34]}  Kh7 {[%clk 0:00:33]} 36. Ra6 {[%clk 0:00:32]}  Kg7 {[%clk 0:00:31]} 37. Ra8 {[%clk 0:00:25]}  Rc7 {[%clk 0:00:30]} 38. Bb4 {[%clk 0:00:18]}  Rc6 {[%clk 0:00:31]} 39. Rb8 {[%clk 0:00:18]}  Rxe6 {[%clk 0:00:31]} 40. Rxb5 {[%clk 0:00:18]}  fxg4+ {[%clk 0:00:22]} 41. hxg4 {[%clk 0:00:19]}  g5 {[%clk 0:00:14]} 42. f5 {[%clk 0:00:12]}  Re1 {[%clk 0:00:15]} 43. Bc5 {[%clk 0:00:12]}  Rf1+ {[%clk 0:00:14]} 44. Bf2 {[%clk 0:00:12]}  Kf7 {[%clk 0:00:11]} 45. Rb4 {[%clk 0:00:12]}  Rb1 {[%clk 0:00:11]} 46. Bc5 {[%clk 0:00:10]}  Rf1+ {[%clk 0:00:11]} 47. Kg2 {[%clk 0:00:10]}  Rf4 {[%clk 0:00:11]} 48. Kg3 {[%clk 0:00:09]}  Be5 {[%clk 0:00:11]} 49. Kh3 {[%clk 0:00:08]}  Rf3+ {[%clk 0:00:06]} 50. Kg2 {[%clk 0:00:09]}  Rg3+ {[%clk 0:00:07]} 51. Kf2 {[%clk 0:00:06]}  Rxg4 {[%clk 0:00:08]} 52. Be3 {[%clk 0:00:04]}  Bf6 {[%clk 0:00:07]} 53. b3 {[%clk 0:00:03]}  Bxc3 {[%clk 0:00:06]} 54. Rxc4 {[%clk 0:00:04]}  Rxc4 {[%clk 0:00:06]} 55. bxc4 {[%clk 0:00:04]}  Bf6 {[%clk 0:00:06]} 56. Kf3 {[%clk 0:00:03]}  Ke8 {[%clk 0:00:06]} 57. Kg4 {[%clk 0:00:03]}  Kd7 {[%clk 0:00:05]} 58. Kh5 {[%clk 0:00:03]}  Kc6 {[%clk 0:00:05]} 59. Kxh6 {[%clk 0:00:03]}  g4 {[%clk 0:00:05]} 60. Kh5 {[%clk 0:00:04]}  g3 {[%clk 0:00:05]} 61. Kg4 {[%clk 0:00:04]}  Kd6 {[%clk 0:00:04]} 62. Kxg3 {[%clk 0:00:02]}  Ke5 {[%clk 0:00:05]} 63. Kg4 {[%clk 0:00:02]}  Ke4 {[%clk 0:00:05]} 64. Bf2 {[%clk 0:00:02]}  Be5 {[%clk 0:00:04]} 65. Bh4 {[%clk 0:00:01]}  Bd6 {[%clk 0:00:04]} 66. Bf2 {[%clk 0:00:02]}  Be5 {[%clk 0:00:04]} 67. c5 {[%clk 0:00:02]}  Kd5 {[%clk 0:00:04]} 68. Kg5 {[%clk 0:00:02]}  Bf6+ {[%clk 0:00:04]} 69. Kg6 {[%clk 0:00:03]}  Be5 {[%clk 0:00:03]} 70. Kf7 {[%clk 0:00:03]}  Bf6 {[%clk 0:00:03]} 71. Bg1 {[%clk 0:00:03]}  Bg5 {[%clk 0:00:03]} 72. Bf2 {[%clk 0:00:03]}  Bf6 {[%clk 0:00:04]} 73. Ke8 {[%clk 0:00:04]}  e6 {[%clk 0:00:03]} 74. Kd7 {[%clk 0:00:03]}  exf5 {[%clk 0:00:03]} 75. c6 {[%clk 0:00:04]}  Be5 {[%clk 0:00:04]} 76. Bb6 {[%clk 0:00:04]}  Bd6 {[%clk 0:00:02]} 77. Bc7 {[%clk 0:00:04]}  Bb4 {[%clk 0:00:02]} 78. Bg3 {[%clk 0:00:04]}  Ba5 {[%clk 0:00:03]} 79. Be1 {[%clk 0:00:04]}  Bb6 {[%clk 0:00:03]} 80. Bd2 {[%clk 0:00:05]}  Kc4 {[%clk 0:00:02]} 81. Be3 {[%clk 0:00:05]}  Ba5 {[%clk 0:00:02]} 82. Bf4 {[%clk 0:00:04]}  Kd5 {[%clk 0:00:02]} 83. Bc7 {[%clk 0:00:04]}  Bb4 {[%clk 0:00:03]} 84. Bg3 {[%clk 0:00:04]}  Ba5 {[%clk 0:00:03]} 85. Be1 {[%clk 0:00:04]}  Bb6 {[%clk 0:00:03]} 86. Bd2 {[%clk 0:00:04]}  Kc4 {[%clk 0:00:03]} 87. Kd6 {[%clk 0:00:05]}  Kb5 {[%clk 0:00:03]} 88. Kd5 {[%clk 0:00:04]}  Bc7 {[%clk 0:00:03]} 89. Be3 {[%clk 0:00:05]}  f4 {[%clk 0:00:03]} 90. Bf2 {[%clk 0:00:04]}  f3 {[%clk 0:00:04]} 91. Be3 {[%clk 0:00:04]}  Bb8 {[%clk 0:00:04]} 92. Bf2 {[%clk 0:00:04]}  Bc7 {[%clk 0:00:05]} 93. Bc5 {[%clk 0:00:05]}  Bb8 {[%clk 0:00:05]} 94. Bg1 {[%clk 0:00:05]}  Bc7 {[%clk 0:00:05]} 95. Bf2 {[%clk 0:00:05]}  Bb8 {[%clk 0:00:06]} 96. Bg1 {[%clk 0:00:06]}  Bc7 {[%clk 0:00:07]} 97. Bf2 {[%clk 0:00:06]}  Bb8 {[%clk 0:00:07]} 98. Bg1 {[%clk 0:00:07]} 1/2-1/2


[Site "https://www.chess.com"]

[Event "Titled Tuesday Blitz March 28 Early 2023"]
[White "Giri, Anish"]
[Black "Rakhmanov, Aleksandr"]
[WhiteFideId "24116068"]
[BlackFideId "4173708"]
[WhiteElo "2807"]
[BlackElo "2530"]
[Result "1-0"]
[Round "04"]
[TimeControl "180+2"]
[Date "2023.03.28"]
[WhiteClock "0:00:33"]
[BlackClock "0:00:39"]

1. e4 {[%clk 0:03:00]}  c5 {[%clk 0:02:59]} 2. Nf3 {[%clk 0:03:01]}  Nf6 {[%clk 0:02:59]} 3. e5 {[%clk 0:03:01]}  Nd5 {[%clk 0:02:58]} 4. Nc3 {[%clk 0:03:02]}  Nxc3 {[%clk 0:02:59]} 5. dxc3 {[%clk 0:03:02]}  Nc6 {[%clk 0:03:00]} 6. Bf4 {[%clk 0:03:01]}  Qb6 {[%clk 0:03:00]} 7. Bd3 {[%clk 0:03:02]}  Qxb2 {[%clk 0:03:00]} 8. O-O {[%clk 0:03:02]}  Qxc3 {[%clk 0:03:00]} 9. Re1 {[%clk 0:03:01]}  e6 {[%clk 0:02:59]} 10. a4 {[%clk 0:03:01]}  Qa5 {[%clk 0:02:45]} 11. Be4 {[%clk 0:02:44]}  Qc7 {[%clk 0:02:44]} 12. a5 {[%clk 0:02:20]}  h6 {[%clk 0:02:43]} 13. Qd2 {[%clk 0:02:15]}  Rb8 {[%clk 0:02:27]} 14. Qc3 {[%clk 0:01:48]}  Be7 {[%clk 0:01:52]} 15. Nd2 {[%clk 0:01:39]}  Bg5 {[%clk 0:01:30]} 16. Bxg5 {[%clk 0:01:21]}  hxg5 {[%clk 0:01:31]} 17. Nc4 {[%clk 0:01:21]}  f5 {[%clk 0:01:32]} 18. Nd6+ {[%clk 0:01:11]}  Kf8 {[%clk 0:01:26]} 19. Bxf5 {[%clk 0:00:45]}  exf5 {[%clk 0:01:23]} 20. Qxc5 {[%clk 0:00:45]}  b6 {[%clk 0:01:21]} 21. Qc4 {[%clk 0:00:44]}  Ke7 {[%clk 0:00:52]} 22. Qf7+ {[%clk 0:00:44]}  Kd8 {[%clk 0:00:52]} 23. Qxg7 {[%clk 0:00:45]}  Re8 {[%clk 0:00:40]} 24. Nf7+ {[%clk 0:00:36]}  Ke7 {[%clk 0:00:39]} 25. Qf6+ {[%clk 0:00:32]}  Kf8 {[%clk 0:00:39]} 26. Nh6# {[%clk 0:00:33]} 1-0


[Site "https://www.chess.com"]

[Event "Titled Tuesday Blitz March 28 Early 2023"]
[White "Koustav, Chatterjee"]
[Black "Bortnyk, Olexandr"]
[WhiteFideId "25073060"]
[BlackFideId "14120828"]
[WhiteElo "2432"]
[BlackElo "2734"]
[Result "1-0"]
[Round "04"]
[TimeControl "180+2"]
[Date "2023.03.28"]
[WhiteClock "0:00:16"]
[BlackClock "0:00:01"]

1. Nf3 {[%clk 0:03:00]}  Nf6 {[%clk 0:02:58]} 2. d4 {[%clk 0:03:01]}  b6 {[%clk 0:02:58]} 3. g3 {[%clk 0:02:55]}  Bb7 {[%clk 0:02:58]} 4. Bg2 {[%clk 0:02:56]}  g6 {[%clk 0:02:58]} 5. O-O {[%clk 0:02:55]}  Bg7 {[%clk 0:02:58]} 6. c4 {[%clk 0:02:55]}  O-O {[%clk 0:02:58]} 7. d5 {[%clk 0:02:44]}  Na6 {[%clk 0:02:57]} 8. Nc3 {[%clk 0:02:44]}  Nc5 {[%clk 0:02:58]} 9. Nd4 {[%clk 0:02:43]}  e5 {[%clk 0:02:56]} 10. Nc2 {[%clk 0:02:38]}  a5 {[%clk 0:02:53]} 11. b3 {[%clk 0:02:37]}  Ne8 {[%clk 0:02:45]} 12. Rb1 {[%clk 0:02:35]}  Nd6 {[%clk 0:02:43]} 13. Ba3 {[%clk 0:02:25]}  Qe7 {[%clk 0:02:26]} 14. Qd2 {[%clk 0:01:53]}  f5 {[%clk 0:02:17]} 15. Rfd1 {[%clk 0:01:34]}  e4 {[%clk 0:01:53]} 16. Nd4 {[%clk 0:01:27]}  Ba6 {[%clk 0:01:49]} 17. Rbc1 {[%clk 0:01:24]}  Rae8 {[%clk 0:01:45]} 18. Qe3 {[%clk 0:01:15]}  Nf7 {[%clk 0:01:18]} 19. Qd2 {[%clk 0:00:58]}  e3 {[%clk 0:01:15]} 20. Qxe3 {[%clk 0:00:57]}  Qxe3 {[%clk 0:01:14]} 21. fxe3 {[%clk 0:00:57]}  Bh6 {[%clk 0:01:06]} 22. Nc2 {[%clk 0:00:56]}  d6 {[%clk 0:01:04]} 23. Rf1 {[%clk 0:00:48]}  Re7 {[%clk 0:01:01]} 24. Rcd1 {[%clk 0:00:47]}  Rfe8 {[%clk 0:01:00]} 25. Bc1 {[%clk 0:00:47]}  Bg7 {[%clk 0:00:58]} 26. Nd4 {[%clk 0:00:46]}  Bh6 {[%clk 0:00:51]} 27. e4 {[%clk 0:00:38]}  Bxc1 {[%clk 0:00:50]} 28. Rxc1 {[%clk 0:00:39]}  fxe4 {[%clk 0:00:50]} 29. Nc6 {[%clk 0:00:35]}  Bc8 {[%clk 0:00:48]} 30. Nxe7+ {[%clk 0:00:35]}  Rxe7 {[%clk 0:00:49]} 31. Rf6 {[%clk 0:00:35]}  Kg7 {[%clk 0:00:49]} 32. Rcf1 {[%clk 0:00:35]}  Nh6 {[%clk 0:00:30]} 33. R6f4 {[%clk 0:00:32]}  g5 {[%clk 0:00:19]} 34. Rf8 {[%clk 0:00:28]}  Bg4 {[%clk 0:00:19]} 35. h3 {[%clk 0:00:28]}  Bh5 {[%clk 0:00:18]} 36. g4 {[%clk 0:00:28]}  Bg6 {[%clk 0:00:19]} 37. R8f6 {[%clk 0:00:24]}  Nf7 {[%clk 0:00:17]} 38. Nb5 {[%clk 0:00:23]}  Ne5 {[%clk 0:00:11]} 39. R6f2 {[%clk 0:00:18]}  a4 {[%clk 0:00:06]} 40. Nd4 {[%clk 0:00:18]}  axb3 {[%clk 0:00:04]} 41. axb3 {[%clk 0:00:18]}  Kh6 {[%clk 0:00:02]} 42. Rf6 {[%clk 0:00:18]}  Kg7 {[%clk 0:00:03]} 43. b4 {[%clk 0:00:17]}  Ncd7 {[%clk 0:00:03]} 44. Ne6+ {[%clk 0:00:17]}  Kh6 {[%clk 0:00:04]} 45. R6f2 {[%clk 0:00:16]}  e3 {[%clk 0:00:05]} 46. Rf6 {[%clk 0:00:15]}  Nxf6 {[%clk 0:00:05]} 47. Rxf6 {[%clk 0:00:16]}  Nxc4 {[%clk 0:00:05]} 48. h4 {[%clk 0:00:16]}  Rxe6 {[%clk 0:00:04]} 49. dxe6 {[%clk 0:00:16]}  Kg7 {[%clk 0:00:02]} 50. hxg5 {[%clk 0:00:16]}  Ne5 {[%clk 0:00:02]} 51. e7 {[%clk 0:00:16]}  Bf7 {[%clk 0:00:03]} 52. Bd5 {[%clk 0:00:16]}  Be8 {[%clk 0:00:01]} 53. Rf8 {[%clk 0:00:17]}  Bb5 {[%clk 0:00:01]} 54. Rg8# {[%clk 0:00:16]} 1-0


[Site "https://www.chess.com"]

[Event "Titled Tuesday Blitz March 28 Early 2023"]
[White "Kollars, Dmitrij"]
[Black "Ivic, Velimir"]
[WhiteFideId "12909572"]
[BlackFideId "950122"]
[WhiteElo "2584"]
[BlackElo "2563"]
[Result "0-1"]
[Round "04"]
[TimeControl "180+2"]
[Date "2023.03.28"]
[WhiteClock "0:00:06"]
[BlackClock "0:00:13"]

1. e4 {[%clk 0:03:00]}  c5 {[%clk 0:02:59]} 2. Nf3 {[%clk 0:02:59]}  Nc6 {[%clk 0:03:00]} 3. Bb5 {[%clk 0:02:58]}  g6 {[%clk 0:03:00]} 4. O-O {[%clk 0:02:57]}  Bg7 {[%clk 0:03:01]} 5. c3 {[%clk 0:02:57]}  Nf6 {[%clk 0:03:01]} 6. Re1 {[%clk 0:02:55]}  O-O {[%clk 0:03:01]} 7. d4 {[%clk 0:02:55]}  d5 {[%clk 0:03:01]} 8. e5 {[%clk 0:02:54]}  Ne4 {[%clk 0:03:02]} 9. Be3 {[%clk 0:02:51]}  Qb6 {[%clk 0:03:01]} 10. Bxc6 {[%clk 0:02:51]}  bxc6 {[%clk 0:03:02]} 11. Qc1 {[%clk 0:02:51]}  c4 {[%clk 0:03:03]} 12. Nbd2 {[%clk 0:02:44]}  Nxd2 {[%clk 0:03:04]} 13. Nxd2 {[%clk 0:02:45]}  Bf5 {[%clk 0:03:04]} 14. h4 {[%clk 0:02:33]}  h5 {[%clk 0:03:02]} 15. b3 {[%clk 0:02:31]}  Bd3 {[%clk 0:03:02]} 16. Qd1 {[%clk 0:02:24]}  Qa5 {[%clk 0:02:33]} 17. Qc1 {[%clk 0:02:23]}  Qb6 {[%clk 0:02:32]} 18. Qa3 {[%clk 0:02:07]}  e6 {[%clk 0:02:32]} 19. Bg5 {[%clk 0:02:04]}  Rfe8 {[%clk 0:02:28]} 20. Be7 {[%clk 0:01:58]}  Qc7 {[%clk 0:02:23]} 21. Bd6 {[%clk 0:01:45]}  Qd8 {[%clk 0:02:23]} 22. Nf3 {[%clk 0:01:45]}  Bh6 {[%clk 0:02:23]} 23. Qb2 {[%clk 0:01:07]}  a5 {[%clk 0:01:54]} 24. bxc4 {[%clk 0:01:03]}  dxc4 {[%clk 0:01:48]} 25. g3 {[%clk 0:01:02]}  Ra7 {[%clk 0:01:22]} 26. Nd2 {[%clk 0:00:55]}  f5 {[%clk 0:01:13]} 27. f4 {[%clk 0:00:42]}  Qd7 {[%clk 0:00:52]} 28. Qa3 {[%clk 0:00:40]}  c5 {[%clk 0:00:43]} 29. Qxc5 {[%clk 0:00:34]}  Rc8 {[%clk 0:00:39]} 30. Qb6 {[%clk 0:00:21]}  Rb7 {[%clk 0:00:37]} 31. Qxa5 {[%clk 0:00:20]}  Rb2 {[%clk 0:00:37]} 32. Nf3 {[%clk 0:00:13]}  Qb7 {[%clk 0:00:34]} 33. Re3 {[%clk 0:00:08]}  Be4 {[%clk 0:00:26]} 34. d5 {[%clk 0:00:05]}  Bxd5 {[%clk 0:00:16]} 35. Rf1 {[%clk 0:00:06]}  Ra8 {[%clk 0:00:14]} 36. Qc7 {[%clk 0:00:05]}  Qxc7 {[%clk 0:00:13]} 37. Bxc7 {[%clk 0:00:06]}  Raxa2 {[%clk 0:00:13]} 0-1


[Site "https://www.chess.com"]

[Event "Titled Tuesday Blitz March 28 Early 2023"]
[White "Le, Tuan Minh"]
[Black "Urazayev, Arystanbek"]
[WhiteFideId "12401153"]
[BlackFideId "13709810"]
[WhiteElo "2558"]
[BlackElo "2479"]
[Result "1-0"]
[Round "04"]
[TimeControl "180+2"]
[Date "2023.03.28"]
[WhiteClock "0:00:05"]
[BlackClock "0:00:07"]

1. d4 {[%clk 0:03:00]}  Nf6 {[%clk 0:03:00]} 2. Nf3 {[%clk 0:03:00]}  e6 {[%clk 0:03:00]} 3. Bf4 {[%clk 0:03:00]}  b6 {[%clk 0:02:58]} 4. e3 {[%clk 0:03:00]}  Be7 {[%clk 0:02:57]} 5. c4 {[%clk 0:03:00]}  O-O {[%clk 0:02:54]} 6. Nc3 {[%clk 0:03:01]}  Bb7 {[%clk 0:02:55]} 7. Bd3 {[%clk 0:02:59]}  d5 {[%clk 0:02:49]} 8. cxd5 {[%clk 0:02:59]}  Nxd5 {[%clk 0:02:49]} 9. Bg3 {[%clk 0:02:59]}  c5 {[%clk 0:02:47]} 10. O-O {[%clk 0:02:55]}  cxd4 {[%clk 0:02:45]} 11. exd4 {[%clk 0:02:51]}  Nxc3 {[%clk 0:02:43]} 12. bxc3 {[%clk 0:02:52]}  Nd7 {[%clk 0:02:44]} 13. Qe2 {[%clk 0:02:36]}  Bf6 {[%clk 0:02:39]} 14. Rfd1 {[%clk 0:02:34]}  Qe7 {[%clk 0:02:29]} 15. Rac1 {[%clk 0:02:34]}  Rac8 {[%clk 0:02:27]} 16. h3 {[%clk 0:02:30]}  Rfd8 {[%clk 0:02:26]} 17. Bb1 {[%clk 0:02:21]}  b5 {[%clk 0:02:04]} 18. Qxb5 {[%clk 0:01:49]}  Bxf3 {[%clk 0:02:02]} 19. Qd3 {[%clk 0:01:40]}  g6 {[%clk 0:01:32]} 20. Qxf3 {[%clk 0:01:40]}  Bg5 {[%clk 0:01:25]} 21. Rc2 {[%clk 0:01:40]}  Nb6 {[%clk 0:01:25]} 22. Re2 {[%clk 0:01:30]}  Qa3 {[%clk 0:01:25]} 23. h4 {[%clk 0:01:11]}  Rxc3 {[%clk 0:01:23]} 24. Qg4 {[%clk 0:01:10]}  Bh6 {[%clk 0:01:21]} 25. h5 {[%clk 0:01:09]}  Rc1 {[%clk 0:01:16]} 26. Ree1 {[%clk 0:01:04]}  Rxd1 {[%clk 0:01:16]} 27. Rxd1 {[%clk 0:01:05]}  f5 {[%clk 0:01:12]} 28. Qe2 {[%clk 0:01:04]}  Kf7 {[%clk 0:01:02]} 29. Re1 {[%clk 0:00:54]}  Re8 {[%clk 0:01:00]} 30. hxg6+ {[%clk 0:00:49]}  hxg6 {[%clk 0:01:01]} 31. Bxf5 {[%clk 0:00:48]}  gxf5 {[%clk 0:00:41]} 32. Qh5+ {[%clk 0:00:48]}  Ke7 {[%clk 0:00:41]} 33. Qxh6 {[%clk 0:00:36]}  Kd7 {[%clk 0:00:41]} 34. Qg7+ {[%clk 0:00:24]}  Re7 {[%clk 0:00:41]} 35. Qe5 {[%clk 0:00:25]}  Nd5 {[%clk 0:00:41]} 36. Rb1 {[%clk 0:00:24]}  Kc6 {[%clk 0:00:25]} 37. Qb8 {[%clk 0:00:23]}  Nb6 {[%clk 0:00:14]} 38. Bf4 {[%clk 0:00:22]}  Rd7 {[%clk 0:00:14]} 39. Qe8 {[%clk 0:00:20]}  Qxa2 {[%clk 0:00:14]} 40. Rxb6+ {[%clk 0:00:11]}  Kxb6 {[%clk 0:00:08]} 41. Qxd7 {[%clk 0:00:11]}  Qb1+ {[%clk 0:00:06]} 42. Kh2 {[%clk 0:00:11]}  Qe4 {[%clk 0:00:06]} 43. Bc7+ {[%clk 0:00:11]}  Ka6 {[%clk 0:00:07]} 44. Bg3 {[%clk 0:00:05]}  f4 {[%clk 0:00:06]} 45. Qd6+ {[%clk 0:00:05]}  Kb5 {[%clk 0:00:06]} 46. Qxf4 {[%clk 0:00:05]}  Qh7+ {[%clk 0:00:07]} 47. Bh4 {[%clk 0:00:05]} 1-0


[Site "https://www.chess.com"]

[Event "Titled Tuesday Blitz March 28 Early 2023"]
[White "Dzhumagaliev, Yan"]
[Black "Bluebaum, Matthias"]
[WhiteFideId "24100110"]
[BlackFideId "24651516"]
[WhiteElo "2476"]
[BlackElo "2638"]
[Result "0-1"]
[Round "04"]
[TimeControl "180+2"]
[Date "2023.03.28"]
[WhiteClock "0:00:17"]
[BlackClock "0:00:55"]

1. Nf3 {[%clk 0:03:00]}  d5 {[%clk 0:02:59]} 2. h4 {[%clk 0:03:01]}  c5 {[%clk 0:02:57]} 3. h5 {[%clk 0:03:02]}  h6 {[%clk 0:02:54]} 4. c3 {[%clk 0:03:01]}  Nc6 {[%clk 0:02:53]} 5. d4 {[%clk 0:03:02]}  Bg4 {[%clk 0:02:51]} 6. Ne5 {[%clk 0:03:01]}  Nxe5 {[%clk 0:02:46]} 7. dxe5 {[%clk 0:03:02]}  Qd7 {[%clk 0:02:47]} 8. a4 {[%clk 0:02:53]}  a6 {[%clk 0:02:42]} 9. Nd2 {[%clk 0:02:44]}  e6 {[%clk 0:02:36]} 10. c4 {[%clk 0:01:58]}  Ne7 {[%clk 0:02:28]} 11. Rh4 {[%clk 0:01:58]}  Bf5 {[%clk 0:02:24]} 12. e4 {[%clk 0:01:59]}  dxe4 {[%clk 0:02:13]} 13. Nxe4 {[%clk 0:01:59]}  Qxd1+ {[%clk 0:02:14]} 14. Kxd1 {[%clk 0:02:00]}  Nc6 {[%clk 0:02:15]} 15. Be3 {[%clk 0:01:50]}  O-O-O+ {[%clk 0:02:06]} 16. Nd6+ {[%clk 0:01:14]}  Bxd6 {[%clk 0:01:58]} 17. exd6 {[%clk 0:01:15]}  Rxd6+ {[%clk 0:01:58]} 18. Kc1 {[%clk 0:01:09]}  Rhd8 {[%clk 0:01:57]} 19. Be2 {[%clk 0:01:08]}  Nd4 {[%clk 0:01:57]} 20. Bd1 {[%clk 0:01:03]}  a5 {[%clk 0:01:50]} 21. Ra3 {[%clk 0:01:00]}  b6 {[%clk 0:01:49]} 22. Rh1 {[%clk 0:00:49]}  Bh7 {[%clk 0:01:40]} 23. Rc3 {[%clk 0:00:46]}  Nc6 {[%clk 0:01:36]} 24. Bf3 {[%clk 0:00:45]}  Nb4 {[%clk 0:01:35]} 25. Ra3 {[%clk 0:00:42]}  Nd3+ {[%clk 0:01:34]} 26. Rxd3 {[%clk 0:00:40]}  Rxd3 {[%clk 0:01:34]} 27. Rh4 {[%clk 0:00:39]}  Bf5 {[%clk 0:01:26]} 28. Rf4 {[%clk 0:00:39]}  R8d7 {[%clk 0:01:18]} 29. Be2 {[%clk 0:00:32]}  R3d6 {[%clk 0:01:16]} 30. g4 {[%clk 0:00:30]}  Bh7 {[%clk 0:01:16]} 31. Rf3 {[%clk 0:00:30]}  Bd3 {[%clk 0:01:13]} 32. Bxd3 {[%clk 0:00:27]}  Rxd3 {[%clk 0:01:14]} 33. Rf4 {[%clk 0:00:27]}  f6 {[%clk 0:01:08]} 34. Kc2 {[%clk 0:00:28]}  e5 {[%clk 0:01:08]} 35. Rf3 {[%clk 0:00:26]}  R3d6 {[%clk 0:00:58]} 36. Rf5 {[%clk 0:00:25]}  Kb7 {[%clk 0:00:58]} 37. b3 {[%clk 0:00:21]}  Kc6 {[%clk 0:00:58]} 38. Rf3 {[%clk 0:00:19]}  Rd1 {[%clk 0:00:57]} 39. Rg3 {[%clk 0:00:18]}  Rh1 {[%clk 0:00:56]} 40. f4 {[%clk 0:00:18]}  Rh2+ {[%clk 0:00:56]} 41. Kc3 {[%clk 0:00:17]}  e4 {[%clk 0:00:56]} 42. Bg1 {[%clk 0:00:16]}  Re2 {[%clk 0:00:55]} 43. g5 {[%clk 0:00:16]}  fxg5 {[%clk 0:00:54]} 44. fxg5 {[%clk 0:00:17]}  hxg5 {[%clk 0:00:55]} 0-1


[Site "https://www.chess.com"]